bitfinex-derivatives/quotes_SOLF0:USTF0_20251109
["timestamp","ask_amount","ask_price","bid_price","bid_amount"]
[1762723895082,6.66676966,165.28,165.26,0.04295755]
[1762723900878,5.4467,165.28,165.26,0.04295755]
[1762723902686,5.4467,165.28,165.26,3.01295755]
[1762723902881,0.04648367,165.29,165.26,3.01295755]
[1762723911688,5.4449,165.33,165.26,3.01295755]
[1762723911894,1.22006966,165.35,165.26,3.01295755]
[1762723912702,0.04180309,165.32,165.26,3.01295755]
[1762723913097,5.48710309,165.32,165.26,3.01295755]
[1762723914400,5.4456,165.31,165.26,3.01295755]
[1762723918209,0.04180309,165.32,165.26,8.46005755]
[1762723918407,0.04180309,165.32,165.27,3.08]
[1762723919505,5.4456,165.31,165.27,3.08]
[1762723920912,5.4459,165.3,165.27,3.08]
[1762723922104,5.48720309,165.32,165.27,3.08]
[1762723922506,0.04180309,165.32,165.27,3.08]
[1762723922708,6.83935008,165.4,165.29,3.05]
[1762723923011,5.4434,165.38,165.33,3.05]
[1762723923311,1.22006966,165.4,165.33,3.05]
[1762723923709,5.4431,165.39,165.35,0.03862682]
[1762723923908,5.4431,165.39,165.35,3.08862682]
[1762723924114,1.22006966,165.43,165.35,3.08862682]
[1762723924310,6.66166966,165.43,165.35,3.08862682]
[1762723924509,1.22006966,165.43,165.35,3.08862682]
[1762723925215,1.22006966,165.4,165.35,0.03862682]
[1762723925418,1.22006966,165.4,165.36,0.04443958]
[1762723925612,1.22006966,165.37,165.36,0.04443958]
[1762723928905,1.22006966,165.37,165.27,5.64733894]
[1762723929114,1.22006966,165.32,165.26,3.05]
[1762723929317,1.22006966,165.29,165.23,3.05]
[1762723930117,0.03822513,165.28,165.25,3.05]
[1762723931724,0.03822513,165.28,165.24,0.04079034]
[1762723932406,5.4474,165.26,165.24,0.04079034]
[1762723935318,0.03822513,165.28,165.24,3.09079034]
[1762723935619,1.22006966,165.27,165.24,3.09079034]
[1762723936821,0.03822513,165.28,165.24,3.09079034]
[1762723937018,5.4471,165.27,165.24,3.09079034]
[1762723942427,0.03822513,165.28,165.24,3.09079034]
[1762723943630,5.48492513,165.28,165.24,3.09079034]
[1762723944421,5.4471,165.27,165.24,3.09079034]
[1762723944623,0.03822513,165.28,165.24,0.04079034]
[1762723945230,1.90849046,165.26,165.17,3.05]
[1762723945538,1.90849046,165.22,165.13,8.68869808]
[1762723945827,1.90849046,165.22,165.14,3.05]
[1762723946424,0.04561108,165.2,165.16,0.04247865]
[1762723947124,5.4501,165.18,165.16,0.04247865]
[1762723948228,5.4501,165.18,165.16,3.09247865]
[1762723950324,0.04561108,165.2,165.16,3.09247865]
[1762723953237,0.04561108,165.2,165.16,8.54287865]
[1762723953437,0.04561108,165.2,165.17,3.13]
[1762723954440,0.04561108,165.2,165.16,5.49287865]
[1762723954441,0.04561108,165.2,165.16,0.04247865]
[1762723955437,5.45,165.18,165.16,0.04247865]
[1762723961151,5.45,165.18,165.16,3.17247865]
[1762723961444,5.45,165.18,165.16,0.04247865]
[1762723963045,5.49491108,165.2,165.16,3.17247865]
[1762723964240,0.04561108,165.2,165.16,3.17247865]
[1762723973550,0.04561108,165.2,165.16,8.62277865]
[1762723973750,0.04561108,165.2,165.17,3.02]
[1762723979348,0.04561108,165.2,165.16,0.04247865]
[1762723979653,0.04561108,165.2,165.16,3.06247865]
[1762723980955,5.49491108,165.2,165.16,3.06247865]
[1762723982456,5.4496,165.19,165.16,3.06247865]
[1762723983360,0.04561108,165.2,165.16,3.06247865]
[1762723987361,0.04561108,165.2,165.19,2.93]
[1762723987563,10.8912,165.31,165.19,2.93]
[1762723988558,0.03961884,165.27,165.23,0.04300734]
[1762723988761,0.03856562,165.27,165.23,0.0397211]
[1762723989559,0.03856562,165.27,165.23,2.9697211]
[1762723992055,5.4473,165.26,165.23,2.9697211]
[1762723996960,5.4476,165.25,165.23,2.9697211]
[1762723997162,5.4476,165.25,165.23,0.0397211]
[1762723997463,5.4476,165.25,165.23,2.9697211]
[1762724002180,5.4476,165.25,165.23,0.0397211]
[1762724002883,5.4476,165.25,165.23,2.9697211]
[1762724003476,5.4476,165.25,165.23,0.0397211]
[1762724003678,1.22143582,165.26,165.19,2.93]
[1762724004072,5.4477,165.25,165.19,2.93]
[1762724004276,1.22143582,165.26,165.19,2.93]
[1762724004578,0.04198281,165.24,165.22,2.93]
[1762724004975,5.48988281,165.24,165.22,2.93]
[1762724006984,5.48988281,165.24,165.21,0.03928083]
[1762724006985,5.4485,165.22,165.21,0.03928083]
[1762724009383,6.66993582,165.22,165.21,0.03928083]
[1762724010182,5.4504,165.17,165.12,2.93]
[1762724010384,1.22143582,165.19,165.12,2.93]
[1762724011487,5.4506,165.16,165.14,2.97662318]
[1762724011794,0.04283097,165.17,165.14,2.97662318]
[1762724011983,5.49313097,165.17,165.14,2.97662318]
[1762724013389,0.04283097,165.17,165.14,2.97662318]
[1762724020092,5.4506,165.16,165.14,2.97662318]
[1762724020393,5.4506,165.16,165.14,0.04662318]
[1762724022287,6.67203582,165.16,165.14,0.04662318]
[1762724025296,1.26426679,165.17,165.14,0.04662318]
[1762724027194,5.4506,165.16,165.14,0.04662318]
[1762724043308,5.4506,165.16,165.14,2.98662318]
[1762724043508,0.04283097,165.17,165.14,2.98662318]
[1762724043905,0.04283097,165.17,165.14,0.04662318]
[1762724044110,0.04283097,165.17,165.14,2.98662318]
[1762724044111,5.4506,165.16,165.14,2.98662318]
[1762724045206,5.4506,165.16,165.14,0.04662318]
[1762724046308,0.04283097,165.17,165.14,2.98662318]
[1762724048208,0.04283097,165.17,165.14,0.04662318]
[1762724048709,5.4506,165.16,165.14,0.04662318]
[1762724051300,5.4506,165.16,165.14,2.98662318]
[1762724051501,0.04283097,165.17,165.14,2.98662318]
[1762724055011,0.04283097,165.17,165.14,0.04662318]
[1762724055207,5.4506,165.16,165.14,0.04662318]
[1762724055515,6.67203582,165.16,165.14,0.04662318]
[1762724059019,5.4506,165.16,165.14,0.04662318]
[1762724064726,0.04283097,165.17,165.14,2.98662318]
[1762724073232,0.04283097,165.17,165.14,8.43762318]
[1762724073632,0.04283097,165.17,165.15,3.04]
[1762724074633,0.04283097,165.17,165.15,8.4907]
[1762724074831,0.04283097,165.17,165.16,3.04]
[1762724080732,6.50208335,165.23,165.18,3.04]
[1762724081240,5.4486,165.22,165.18,3.04]
[1762724081537,1.05368335,165.23,165.18,3.04]
[1762724081735,0.04350729,165.22,165.18,3.04]
[1762724081932,0.04350729,165.22,165.19,0.03983624]
[1762724083133,5.4489,165.21,165.19,0.03983624]
[1762724084046,6.6689,165.21,165.19,0.03983624]
[1762724084341,5.4489,165.21,165.19,0.03983624]
[1762724084643,5.4489,165.21,165.19,3.07983624]
[1762724086432,5.4489,165.21,165.19,0.03983624]
[1762724100654,7.35974907,165.21,165.19,0.03983624]
[1762724105662,7.35974907,165.21,165.19,3.04983624]
[1762724105961,0.04350729,165.22,165.19,3.04983624]
[1762724112673,5.49220729,165.22,165.19,3.04983624]
[1762724112872,0.04350729,165.22,165.19,3.04983624]
[1762724113369,5.4489,165.21,165.19,3.04983624]
[1762724115862,7.35974907,165.21,165.19,0.03983624]
[1762724119579,5.4502,165.17,165.13,3.01]
[1762724119777,1.91084907,165.17,165.06,3.01]
[1762724120370,5.4506,165.16,165.09,3.01]
[1762724120572,0.0411267,165.14,165.12,3.01]
[1762724120982,1.22344656,165.13,165.12,3.01]
[1762724122181,1.22344656,165.13,165.11,0.04209755]
[1762724122385,1.22344656,165.13,165.11,3.05209755]
[1762724122572,6.67504656,165.13,165.11,3.05209755]
[1762724123182,6.67504656,165.13,165.11,0.04209755]
[1762724123783,6.67504656,165.13,165.11,3.05209755]
[1762724125083,1.22344656,165.13,165.11,3.05209755]
[1762724128187,5.4924267,165.14,165.11,3.05209755]
[1762724134091,0.0411267,165.14,165.11,3.05209755]
[1762724142903,5.4923267,165.14,165.11,3.05209755]
[1762724144003,5.4516,165.13,165.11,3.05209755]
[1762724147502,5.4516,165.13,165.11,0.04209755]
[1762724164622,5.4516,165.13,165.11,3.12209755]
[1762724164817,0.0411267,165.14,165.11,3.12209755]
[1762724167623,1.26457326,165.14,165.11,0.04209755]
[1762724168419,5.4517,165.13,165.11,0.04209755]
[1762724179040,5.4517,165.13,165.11,3.12209755]
[1762724179531,5.4517,165.13,165.11,0.04209755]
[1762724180334,1.22344656,165.12,165.11,0.04209755]
[1762724181042,5.4517,165.13,165.11,0.04209755]
[1762724184348,5.4517,165.13,165.11,3.12209755]
[1762724188243,5.4517,165.13,165.11,0.04209755]
[1762724191847,5.4517,165.13,165.11,2.95209755]
[1762724192754,5.4517,165.13,165.11,0.04209755]
[1762724194058,5.4517,165.13,165.11,2.95209755]
[1762724200766,5.4517,165.13,165.11,0.04209755]
[1762724206477,5.4517,165.13,165.11,2.95209755]
[1762724214482,5.4517,165.13,165.11,0.04209755]
[1762724214782,1.91253801,165.12,165.11,0.04209755]
[1762724214970,1.91253801,165.12,165.04,3.07]
[1762724215175,1.91253801,165.12,164.97,148.06863141]
[1762724215176,1.91253801,165.09,165.01,3.07]
[1762724215383,1.91253801,165.09,164.98,3.07]
[1762724215584,5.4549,165.03,164.98,3.07]
[1762724216084,0.04268633,165.02,165.0,3.07]
[1762724222889,0.04268633,165.02,165.01,3.09]
[1762724223681,5.452,165.12,165.01,4.31]
[1762724223881,5.452,165.12,165.02,3.09]
[1762724224085,1.91253801,165.17,165.02,3.09]
[1762724224282,5.4526,165.1,165.02,8.5449]
[1762724224487,1.91253801,165.17,165.03,3.09]
[1762724224792,0.03827462,165.12,165.09,3.09]
[1762724224992,0.03827462,165.12,165.09,3.13339171]
[1762724225787,5.49017462,165.12,165.09,3.13339171]
[1762724227589,5.4523,165.11,165.09,0.04339171]
[1762724227895,5.4523,165.11,165.09,3.13339171]
[1762724228097,0.03827462,165.12,165.09,3.13339171]
[1762724231790,5.49027462,165.12,165.09,3.13339171]
[1762724233496,5.4522,165.11,165.09,3.13339171]
[1762724236999,0.03827462,165.12,165.09,3.13339171]
[1762724242497,0.03827462,165.12,165.09,0.04339171]
[1762724242910,1.26204355,165.12,165.09,0.04339171]
[1762724243310,1.26204355,165.12,165.09,3.13339171]
[1762724244009,5.4523,165.11,165.09,3.13339171]
[1762724247712,5.4523,165.11,165.09,0.04339171]
[1762724247909,1.22376893,165.1,165.09,0.04339171]
[1762724250917,5.4523,165.11,165.09,0.04339171]
[1762724259822,5.4544,165.05,165.01,3.04]
[1762724260623,5.4546,165.04,165.01,3.04]
[1762724260817,5.49314492,165.04,165.01,3.08440525]
[1762724262320,5.4549,165.03,165.01,0.04440525]
[1762724262520,0.03854492,165.04,165.01,3.08440525]
[1762724263526,5.49304492,165.04,165.01,3.08440525]
[1762724264727,0.03854492,165.04,165.01,3.08440525]
[1762724271929,0.03854492,165.04,165.01,8.53980525]
[1762724272130,5.453,165.09,165.02,3.07]
[1762724273130,0.04143078,165.07,165.04,3.10864523]
[1762724277629,0.04143078,165.07,165.04,8.56294523]
[1762724277835,0.04143078,165.07,165.05,3.07]
[1762724281131,1.26519971,165.07,165.04,0.03864523]
[1762724281331,1.26519971,165.07,164.98,3.07]
[1762724281537,1.22376893,165.02,164.98,3.07]
[1762724282342,6.67906893,165.02,164.98,3.07]
[1762724282536,6.67906893,165.02,164.98,3.11658823]
[1762724282537,1.26539886,165.02,164.98,3.11658823]
[1762724283230,1.22376893,164.99,164.98,0.04658823]
[1762724284433,5.4565,164.98,164.92,3.15]
[1762724284628,1.22376893,164.96,164.92,3.15]
[1762724285632,1.26995865,164.96,164.92,3.19334049]
[1762724288737,5.4577,164.95,164.92,0.04334049]
[1762724288939,6.68146893,164.95,164.92,3.19334049]
[1762724289237,1.22376893,164.95,164.92,3.19334049]
[1762724289741,1.22376893,164.95,164.92,0.04334049]
[1762724289936,1.22376893,164.95,164.92,3.19334049]
[1762724291240,5.4579,164.94,164.92,0.04334049]
[1762724292442,6.6779,164.94,164.92,0.04334049]
[1762724293136,1.22,164.94,164.8,3.15]
[1762724293337,1.22376893,164.9,164.82,3.15]
[1762724293837,5.4602,164.87,164.82,3.15]
[1762724294141,1.22376893,164.88,164.77,3.15]
[1762724294342,0.04184868,164.86,164.83,0.04516955]
[1762724294543,0.04184868,164.86,164.83,3.19516955]
[1762724305947,0.00184868,164.86,164.83,3.19516955]
[1762724306246,5.4585,164.92,164.83,3.19516955]
[1762724306647,5.4585,164.92,164.86,3.15]
[1762724307039,0.04654567,164.91,164.88,3.15]
[1762724308344,0.04654567,164.91,164.87,0.03962075]
[1762724309652,1.26654567,164.91,164.87,0.03962075]
[1762724309951,5.4595,164.89,164.87,0.03962075]
[1762724311744,6.6795,164.89,164.87,0.03962075]
[1762724312145,7.73534126,164.89,164.87,0.03962075]
[1762724316949,6.51534126,164.89,164.87,0.03962075]
[1762724331664,6.51534126,164.89,164.87,2.92962075]
[1762724331965,5.50554567,164.91,164.87,2.92962075]
[1762724333068,5.4591,164.9,164.87,2.92962075]
[1762724337070,5.4595,164.89,164.87,2.92962075]
[1762724340375,5.4595,164.89,164.87,0.03962075]
[1762724343567,5.4595,164.89,164.87,2.92962075]
[1762724343771,5.4595,164.89,164.87,0.03962075]
[1762724345069,5.50544567,164.91,164.87,2.92962075]
[1762724347471,0.04654567,164.91,164.87,2.92962075]
[1762724349078,5.50544567,164.91,164.87,2.92962075]
[1762724350477,0.04654567,164.91,164.87,2.92962075]
[1762724352787,5.4583,164.93,164.88,2.89]
[1762724353984,0.04341547,164.92,164.88,2.89]
[1762724357279,5.50181547,164.92,164.88,2.89]
[1762724357981,0.04341547,164.92,164.88,2.89]
[1762724359486,0.04341547,164.92,164.9,2.89]
[1762724360288,0.04341547,164.92,164.91,2.89]
[1762724360474,5.457,164.97,164.91,2.89]
[1762724360680,60.34657,165.0,164.91,2.89]
[1762724361486,0.04099093,164.97,164.95,2.89]
[1762724362991,6.72386174,164.97,164.95,2.89]
[1762724365394,0.04099093,164.97,164.95,2.89]
[1762724366091,1.22587081,165.03,164.95,2.89]
[1762724366389,1.22587081,165.03,164.96,2.89]
[1762724366595,5.4552,165.02,164.96,2.89]
[1762724367197,0.04278476,165.01,164.98,2.89]
[1762724369187,5.49828476,165.01,164.98,2.89]
[1762724370104,5.4559,165.0,164.98,2.89]
[1762724370295,0.04278476,165.01,164.98,2.89]
[1762724374589,0.00278476,165.01,164.98,2.89]
[1762724374795,5.4543,165.05,164.98,2.89]
[1762724375701,0.03287248,165.03,164.98,2.89]
[1762724375901,0.03287248,165.03,164.97,0.04581356]
[1762724375902,0.03287248,165.03,165.0,2.87]
[1762724376305,0.03287248,165.03,165.02,2.87]
[1762724376706,6.67947081,165.07,165.02,2.87]
[1762724376903,1.22587081,165.07,165.03,2.87]
[1762724378306,6.67947081,165.07,165.03,2.87]
[1762724378702,1.22587081,165.07,165.03,2.87]
[1762724378907,5.4543,165.05,165.01,2.91522723]
[1762724379505,6.68037081,165.04,165.01,2.91522723]
[1762724379707,6.68037081,165.04,165.01,2.91341035]
[1762724381206,5.4549,165.03,165.01,2.91341035]
[1762724381706,5.4549,165.03,165.01,0.04341035]
[1762724382810,5.4549,165.03,165.01,2.91341035]
[1762724387115,6.68017081,165.05,165.01,2.91341035]
[1762724387305,6.68017081,165.05,165.01,2.91125915]
[1762724390809,6.67947081,165.07,165.01,2.91125915]
[1762724391011,6.67947081,165.07,165.03,3.1]
[1762724391313,1.22587081,165.07,165.03,3.1]
[1762724392013,5.4539,165.06,165.03,3.1]
[1762724393815,1.22587081,165.07,165.03,3.1]
[1762724394509,1.22587081,165.09,165.03,3.1]
[1762724394716,1.22587081,165.09,165.05,3.1]
[1762724394919,1.22587081,165.09,165.05,3.13918996]
[1762724395615,10.8986,165.2,165.05,3.13918996]
[1762724395818,1.22587081,165.15,165.11,0.04415587]
[1762724396311,5.4512,165.14,165.11,0.04415587]
[1762724397414,5.4512,165.14,165.11,3.14415587]
[1762724398818,5.4516,165.13,165.11,0.04415587]
[1762724401519,6.67747081,165.13,165.11,0.04415587]
[1762724402815,5.4516,165.13,165.11,2.91415587]
[1762724403015,5.451,165.15,165.11,2.91415587]
[1762724403619,1.22587081,165.14,165.11,0.04415587]
[1762724404222,5.4518,165.12,165.11,0.04415587]
[1762724404919,5.4512,165.14,165.11,2.91415587]
[1762724405125,1.22587081,165.16,165.11,2.91415587]
[1762724405420,2.27982541,165.2,165.11,2.91415587]
[1762724405622,5.45,165.18,165.12,2.87]
[1762724405820,10.8939,165.27,165.14,2.87]
[1762724406026,83.662,165.29,165.19,2.91605323]
[1762724406027,1.05371525,165.25,165.19,2.91605323]
[1762724406324,1.05371525,165.25,165.2,2.90890372]
[1762724406619,5.4481,165.24,165.21,2.91254901]
[1762724407019,1.05338035,165.28,165.21,2.91254901]
[1762724407321,1.22587081,165.27,165.23,2.91595865]
[1762724407520,1.22587081,165.27,165.23,0.04215148]
[1762724408326,5.4474,165.26,165.23,0.04215148]
[1762724410830,1.22587081,165.24,165.23,0.04215148]
[1762724412633,1.22587081,165.24,165.17,2.87]
[1762724412634,5.4485,165.22,165.17,2.87]
[1762724413524,5.4485,165.22,165.18,0.04210302]
[1762724413728,5.49115149,165.21,165.18,2.91210302]
[1762724413931,0.04215149,165.21,165.18,2.91210302]
[1762724414123,5.4476,165.25,165.18,2.91210302]
[1762724414324,5.4476,165.25,165.18,2.87]
[1762724414524,1.22587081,165.27,165.18,2.87]
[1762724414733,6.67287081,165.27,165.19,2.87]
[1762724415333,6.67287081,165.27,165.21,2.91563002]
[1762724415737,6.062,165.46,165.22,2.87]
[1762724415738,1.22587081,165.32,165.22,2.87]
[1762724416029,1.22587081,165.32,165.26,2.87]
[1762724416228,5.4453,165.32,165.26,2.87]
[1762724416530,1.22587081,165.34,165.26,2.87]
[1762724416829,1.22587081,165.34,165.28,2.90891117]
[1762724418225,1.05271119,165.4,165.28,2.90891117]
[1762724418424,1.22587081,165.38,165.32,2.90923501]
[1762724419431,5.4439,165.37,165.32,2.90923501]
[1762724419628,1.22587081,165.38,165.32,2.90923501]
[1762724420127,5.443,165.39,165.32,2.90923501]
[1762724420331,1.22587081,165.4,165.32,2.90923501]
[1762724420829,60.4724724,165.44,165.32,2.90923501]
[1762724420830,1.0524724,165.44,165.32,2.90923501]
[1762724421030,2.27834321,165.44,165.37,2.87]
[1762724421532,7.71974321,165.44,165.37,2.87]
[1762724421725,6.66727081,165.44,165.37,2.87]
[1762724421922,1.22587081,165.44,165.37,2.87]
[1762724422135,1.22587081,165.41,165.36,0.03934391]
[1762724422326,1.22587081,165.41,165.37,0.03901624]
[1762724422628,1.22587081,165.38,165.37,0.03901624]
[1762724422828,1.90610105,165.39,165.36,0.03899533]
[1762724423027,1.90610105,165.39,165.36,0.04356955]
[1762724423331,5.4434,165.38,165.36,0.04356955]
[1762724427535,5.4427,165.4,165.36,2.91356955]
[1762724427732,5.4427,165.4,165.36,2.91303698]
[1762724429735,1.90610105,165.41,165.36,2.91303698]
[1762724429936,5.442,165.42,165.36,2.91303698]
[1762724430241,1.05221782,165.47,165.36,2.91303698]
[1762724430242,1.90610105,165.46,165.36,2.91303698]
[1762724430539,1.90610105,165.46,165.3,0.17963]
[1762724430540,5.441,165.45,165.39,2.91271925]
[1762724430740,1.90610105,165.46,165.39,2.91271925]
[1762724431036,5.4424,165.41,165.39,0.04271925]
[1762724432336,5.4424,165.41,165.32,2.87]
[1762724432337,5.4436,165.37,165.32,2.87]
[1762724433340,5.48681925,165.36,165.33,0.04215677]
[1762724433935,5.4443,165.35,165.33,0.04215677]
[1762724435233,1.9488203,165.36,165.33,0.04215677]
[1762724435234,0.04271925,165.36,165.33,3.08215677]
[1762724436441,1.90610105,165.4,165.33,3.08215677]
[1762724437242,7.34790105,165.43,165.35,3.04]
[1762724437442,1.90610105,165.43,165.37,0.0419649]
[1762724437937,5.4421,165.42,165.37,3.0819649]
[1762724438134,1.90610105,165.4,165.37,0.0419649]
[1762724438441,1.90610105,165.4,165.37,0.04084717]
[1762724438642,5.4429,165.39,165.37,0.04084717]
[1762724439542,1.90610105,165.42,165.37,3.08084717]
[1762724439839,1.90610105,165.45,165.38,3.08291555]
[1762724440138,1.90610105,165.45,165.4,0.0458649]
[1762724441030,7.34720105,165.45,165.4,0.0458649]
[1762724441233,5.4411,165.45,165.4,0.0458649]
[1762724441536,1.90610105,165.46,165.4,0.0458649]
[1762724441738,5.4421,165.42,165.4,0.0458649]
[1762724442635,1.90610105,165.43,165.4,0.0458649]
[1762724443938,5.4414,165.44,165.4,0.0458649]
[1762724444138,5.4417,165.43,165.4,3.0858649]
[1762724444339,1.05221782,165.47,165.4,3.0858649]
[1762724444535,1.90610105,165.46,165.4,3.0858649]
[1762724445535,5.4414,165.44,165.4,3.0858649]
[1762724446543,1.90610105,165.41,165.31,3.04]
[1762724447240,1.90610105,165.38,165.3,0.17963]
[1762724447441,0.04457137,165.36,165.32,0.04404113]
[1762724447643,5.4443,165.35,165.32,0.04404113]
[1762724449742,5.4447,165.34,165.32,0.04404113]
[1762724451240,5.48857137,165.36,165.32,3.03404113]
[1762724451847,0.04457137,165.36,165.32,3.03404113]
[1762724453845,0.04457137,165.36,165.32,0.04404113]
[1762724454536,5.4447,165.34,165.32,0.04404113]
[1762724456345,0.04457137,165.36,165.32,0.04404113]
[1762724457542,5.4446,165.34,165.32,0.04404113]
[1762724457751,0.04457137,165.36,165.32,0.04404113]
[1762724458251,5.4444,165.35,165.32,0.04404113]
[1762724458850,5.4447,165.34,165.32,0.04404113]
[1762724460653,5.4447,165.34,165.32,3.03404113]
[1762724460855,5.48857137,165.36,165.32,3.03404113]
[1762724461949,0.04457137,165.36,165.32,3.03404113]
[1762724463049,0.04457137,165.36,165.32,8.47904113]
[1762724463249,0.04457137,165.36,165.33,3.0]
[1762724472063,0.04457137,165.36,165.33,8.4448]
[1762724472264,0.04457137,165.36,165.34,3.0]
[1762724477064,1.90578457,165.44,165.34,3.0]
[1762724477360,5.4417,165.43,165.36,5.4438]
[1762724477556,1.90578457,165.44,165.34,3.0]
[1762724477868,7.34708457,165.44,165.38,3.0]
[1762724478067,7.34708457,165.44,165.4,3.0]
[1762724478868,5.4417,165.43,165.4,3.0]
[1762724479564,5.4424,165.41,165.39,0.03862545]
[1762724479760,7.34818457,165.41,165.39,0.03862545]
[1762724484871,1.21956124,165.4,165.39,0.03862545]
[1762724485774,1.21956124,165.42,165.39,3.03862545]
[1762724487273,6.66156124,165.42,165.39,3.03862545]
[1762724487574,1.21956124,165.42,165.39,3.03862545]
[1762724488473,1.21956124,165.45,165.39,3.03862545]
[1762724489373,1.21956124,165.45,165.4,3.0]
[1762724491270,6.66026124,165.46,165.4,3.0]
[1762724491778,6.65966124,165.48,165.41,3.0]
[1762724491976,6.65966124,165.48,165.44,3.03]
[1762724493275,1.21956124,165.48,165.44,3.03]
[1762724493481,5.4395,165.5,165.44,3.03]
[1762724493482,6.65906124,165.5,165.44,3.03]
[1762724495269,5.4398,165.49,165.44,3.03]
[1762724497176,1.21956124,165.48,165.44,3.03]
[1762724497875,6.65966124,165.48,165.44,3.03]
[1762724498183,1.21956124,165.5,165.44,3.03]
[1762724498387,1.21956124,165.5,165.46,3.03]
[1762724502184,1.21956124,165.51,165.46,3.03]
[1762724502682,6.65786124,165.53,165.46,3.03]
[1762724503082,6.65786124,165.53,165.47,3.03]
[1762724503286,6.65786124,165.53,165.49,3.03]
[1762724503481,6.65786124,165.53,165.49,3.07454627]
[1762724505887,6.65736124,165.55,165.49,3.07454627]
[1762724506384,5.4378,165.55,165.5,3.03]
[1762724508089,1.21956124,165.56,165.51,2.94]
[1762724508387,5.4371,165.57,165.51,2.94]
[1762724508582,5.4371,165.57,165.53,2.94]
[1762724509183,5.4376,165.56,165.52,0.04564512]
[1762724509384,1.21956124,165.55,165.52,2.98564512]
[1762724509883,1.21956124,165.53,165.52,0.04564512]
[1762724510093,1.21956124,165.53,165.45,2.94]
[1762724510279,1.21956124,165.5,165.45,2.94]
[1762724510892,1.21956124,165.48,165.45,2.94]
[1762724511081,1.2655948,165.48,165.45,2.98048945]
[1762724513294,1.2655948,165.48,165.45,0.04048945]
[1762724513994,6.7056948,165.48,165.45,0.04048945]
[1762724514684,1.21956124,165.46,165.45,0.04048945]
[1762724515690,5.4404,165.47,165.45,0.04048945]
[1762724516087,0.04603356,165.48,165.45,2.98048945]
[1762724518491,5.4385,165.53,165.47,2.94]
[1762724519298,5.4385,165.53,165.49,2.94]
[1762724519894,5.4385,165.53,165.48,0.04574339]
[1762724519895,5.4387,165.52,165.48,0.04574339]
[1762724520396,5.4394,165.5,165.48,0.04574339]
[1762724520594,5.4394,165.5,165.47,0.038284]
[1762724521094,10.8739,165.58,165.47,0.038284]
[1762724521095,5.4399,165.49,165.47,0.038284]
[1762724521397,16.9359,165.58,165.46,0.04091887]
[1762724521398,1.21956124,165.5,165.46,0.04091887]
[1762724521599,5.4404,165.47,165.46,0.04032028]
[1762724524202,5.4414,165.44,165.38,0.20049]
[1762724524499,1.21956124,165.46,165.38,0.20049]
[1762724524700,1.21956124,165.44,165.38,0.20049]
[1762724524889,5.4421,165.42,165.38,0.20049]
[1762724525096,1.21956124,165.44,165.38,0.20049]
[1762724525294,0.04122536,165.43,165.39,0.03927868]
[1762724526104,5.4424,165.41,165.39,0.03927868]
[1762724529706,1.21956124,165.4,165.31,3.16]
[1762724530407,1.21956124,165.4,165.3,1.21956124]
[1762724530608,0.03834876,165.37,165.33,0.04186108]
[1762724532007,5.4444,165.35,165.33,0.04186108]
[1762724533708,5.48194876,165.37,165.33,0.04186108]
[1762724534908,5.4441,165.36,165.33,0.04186108]
[1762724535610,0.03834876,165.37,165.33,0.04186108]
[1762724535611,0.03834876,165.37,165.33,3.20186108]
[1762724536209,0.03834876,165.37,165.34,4.37956124]
[1762724536406,0.03834876,165.37,165.35,3.16]
[1762724539915,0.03834876,165.37,165.34,4.37956124]
[1762724540115,0.03834876,165.37,165.35,3.16]
[1762724550125,0.03834876,165.37,165.33,0.04186108]
[1762724550618,5.444,165.36,165.33,0.04186108]
[1762724553124,5.4443,165.35,165.33,0.04186108]
[1762724557222,1.90528055,165.35,165.27,3.0]
[1762724557828,5.4456,165.31,165.27,3.0]
[1762724558123,1.90528055,165.35,165.27,3.0]
[1762724558327,5.4463,165.29,165.24,3.0]
[1762724558519,5.4463,165.29,165.21,188.43958256]
[1762724558520,0.0452455,165.28,165.26,3.0]
[1762724558718,0.0452455,165.28,165.25,0.04653259]
[1762724558920,0.0452455,165.28,165.25,3.04653259]
[1762724561022,0.0452455,165.28,165.25,0.04653259]
[1762724561529,5.4471,165.27,165.25,0.04653259]
[1762724564626,5.4485,165.23,165.18,3.0]
[1762724565527,0.04211137,165.22,165.19,3.04605725]
[1762724567539,0.04211137,165.22,165.19,0.04605725]